Cogmind - Beta 13 @@@ ROGUE MODE // 2024.06.01 @ 19:47:25 Player: Dendrocnid Result: Destroyed by Cetus Guard with Advanced Variable Charge Gun Performance ------------- Evolutions (4) 2000 Regions Visited (10) 2000 Robots Destroyed (88) 440 Value Destroyed (4413) 4413 Prototype IDs (4) 80 Alien Tech Used (0) 0 Bonus (2409) 2409 TOTAL SCORE: 11342 Bonus ------- High Alert Combat Kills 29 Follower Combat Kills 1341 Entered Garrisons 400 Used RIF Installer 1000 Friendly Fire -361 Cogmind --------- Core Integrity 0/850 Matter 290/300 Energy 100/100 System Corruption 7% Temperature Cool (9) Movement Rolling (100) Location -6/Cetus Parts ------- > --- POWER (1) -------- (None) > --- PROPULSION (2) --- Compact Wheel > --- UTILITY (10) ----- Hacking Suite > --- WEAPON (2) ------- (None) > --- INVENTORY (5) ---- Matter Compressor (250) Relay Coupler [NC] (23) Relay Coupler [NC] (23) Relay Coupler [Swarmer] (41) Remote Datajack Peak State ------------ > --- POWER ------------ Improved Deuterium Engine > --- PROPULSION ------- Improved Heavy Treads > --- UTILITY ---------- Improved Heat Sink High-capacity Storage Unit Heavy Armor Plating Relay Coupler [Swarmer] Relay Coupler [Sentry] Relay Coupler [Sentry] Relay Coupler [Hunter] > --- WEAPON ----------- Gauss Rifle Ripper > --- INVENTORY -------- Improved Deuterium Engine Wheel Large Storage Unit Cargo Storage Unit Medium Matter Pod Hardened Light Armor Plating Relay Coupler [NC] Relay Coupler [NC] Relay Coupler [Swarmer] Relay Coupler [Sentry] Relay Coupler [Hunter] Relay Coupler [Hunter] Relay Coupler [Hunter] Relay Coupler [Behemoth] Improved EM Pulse Cannon Improved EM Pulse Cannon Flak Gun Rocket Launcher Remote Datajack [Rating: 57] Favorites ----------- Power Improved Deuterium Engine Engine Improved Deuterium Engine Power Core Light Nuclear Core Propulsion Armored Wheel Treads Improved Heavy Treads Leg Carbon-fiber Leg Wheel Armored Wheel Utility Relay Coupler [Swarmer] Device Improved Heat Sink Storage High-capacity Storage Unit Processor Targeting Computer Hackware Relay Coupler [Swarmer] Protection Hardened Light Armor Plating Weapon Assault Rifle Energy Gun Beam Rifle Energy Cannon Improved EM Pulse Cannon Ballistic Gun Assault Rifle Ballistic Cannon Gauss Cannon Launcher Rocket Launcher Special Weapon Remote Datajack Impact Weapon Maul Slashing Weapon Ripper Build | -11 -10 -9 -8 -7 -7 -7 -7 -6 -6 -6 ------- Run | Yrd Mat Mat Mat Fac Gar Fac Gar Fac Ext Cet Slots Evolved 8 | . . 2 2 2 . . . 2 . . Power . | . . . . . . . . . . . Propulsion . | . . . . . . . . . . . Utility 8 | . . 2 2 2 . . . 2 . . Weapon . | . . . . . . . . . . . Parts Attached 162 | 6 6 7 22 10 30 13 28 32 8 . Power 15 | 1 1 1 4 2 3 . 1 2 . . Engine 10 | 1 . . 2 2 2 . 1 2 . . Core 5 | . 1 1 2 . 1 . . . . . Reactor . | . . . . . . . . . . . Propulsion 23 | 2 1 3 3 1 7 . 2 3 1 . Treads 6 | . 1 3 1 . 1 . . . . . Leg 2 | . . . . . 2 . . . . . Wheel 15 | 2 . . 2 1 4 . 2 3 1 . Hover . | . . . . . . . . . . . Flight . | . . . . . . . . . . . Utility 41 | 1 2 3 5 4 5 4 6 8 3 . Device 9 | . . 1 3 2 1 . 1 1 . . Storage 6 | 1 1 . 1 . 2 . 1 . . . Processor 3 | . 1 . . 1 1 . . . . . Hackware 14 | . . . . . 1 2 4 4 3 . Protection 9 | . . 2 1 1 . 2 . 3 . . Artifact . | . . . . . . . . . . . Weapon 83 | 2 2 . 10 3 15 9 19 19 4 . Energy Gun 2 | . . . 2 . . . . . . . Energy Cannon 9 | . . . . . 1 2 1 3 2 . Ballistic Gun 34 | 2 2 . 5 2 3 2 8 9 1 . Ballistic Cannon 8 | . . . 2 1 4 . . 1 . . Launcher 3 | . . . . . 2 . 1 . . . Special Weapon 12 | . . . . . . 2 5 4 1 . Impact Weapon 1 | . . . 1 . . . . . . . Slashing Weapon 14 | . . . . . 5 3 4 2 . . Piercing Weapon . | . . . . . . . . . . . Special Melee Weapon . | . . . . . . . . . . . Unidentified Prototypes . | . . . . . . . . . . . Parts Lost 56 | . 3 2 6 5 12 1 4 13 10 . Power 10 | . 1 . 2 1 2 . 1 2 1 . Propulsion 13 | . 1 1 1 1 5 . . 3 1 . Utility 21 | . . 1 2 3 3 . 2 5 5 . Weapon 12 | . 1 . 1 . 2 1 1 3 3 . Highest Loss Streak 8 | . 1 1 3 5 7 1 4 2 8 . To Critical Strikes . | . . . . . . . . . . . Average Slot Usage (%) 73 | . 95 92 78 67 55 71 73 73 69 13 Engine 4 | . 8 . 3 6 3 7 6 4 5 . Core 2 | . 5 11 5 . 2 . . . . . Treads 4 | . 2 19 9 . 2 7 4 . . . Wheel 8 | . 25 1 7 14 3 . 4 12 9 6 Device 5 | . . 11 14 14 4 7 3 2 . . Storage 7 | . 14 11 9 7 7 7 7 6 5 . Processor 2 | . 11 2 . . 6 7 . . . . Hackware 12 | . . . . . . 7 27 27 26 6 Protection 6 | . . 13 12 6 1 10 2 5 7 . Energy Cannon 1 | . . . . . 3 4 . 1 2 . Ballistic Gun 9 | . 26 22 11 6 3 2 10 4 7 . Ballistic Cannon 2 | . . . 3 7 4 3 . 2 . . Slashing Weapon 1 | . . . . . 2 3 2 1 . . Naked Turns . | . . . . . . . . . . . Heaviest Build 188 | 11 29 44 69 75 65 82 159 188 188 . Greatest Support 75 | 26 26 43 43 24 75 75 75 24 24 16 Greatest Overweight (x) 18 | . 2 2 4 5 14 1 18 7 14 . Average Overweight (x) 2 | . . . 1 2 . . 1 6 6 . Largest Inventory Capacity 30 | 8 15 15 20 20 30 20 30 30 30 5 Average Capacity 21 | 6 9 15 17 20 20 20 21 30 28 5 Most Carried 20 | 6 8 8 9 13 20 20 20 18 12 5 Average Carried 12 | 2 6 7 8 10 14 19 17 13 9 5 Final Capacity 30 | 8 15 15 20 20 20 20 30 30 5 5 Final Carried 20 | 6 7 8 9 11 20 19 18 12 5 5 Class Distribution -------------------- 42% | Bothacker-Mutant 32% | Mutant 24% | Scavenger-Mutant Dominant Class ---------------- Mutant | -10/Materials Mutant | -9/Materials Mutant | -8/Materials Mutant | -7/Factory Scavenger-Mutant | -7/Garrison Scavenger-Mutant | -7/Factory Bothacker-Mutant | -7/Garrison Bothacker-Mutant | -6/Factory Bothacker-Mutant | -6/Extension Mutant | -6/Cetus Resources | -11 -10 -9 -8 -7 -7 -7 -7 -6 -6 -6 ----------- Run | Yrd Mat Mat Mat Fac Gar Fac Gar Fac Ext Cet Matter Collected 4011 | 153 303 231 477 344 693 87 560 966 197 . Remotely . | . . . . . . . . . . . Salvage Created 3835 | . 303 236 477 233 1152 130 517 565 222 . Parts 196 | . 26 15 29 20 36 13 18 32 7 . Haulers Intercepted . | . . . . . . . . . . . Recyclers Shooed 4 | . . . 1 . . . . 3 . . Parts Field Recycled . | . . . . . . . . . . . Retrieved Matter . | . . . . . . . . . . . Parts Self-Destructed . | . . . . . . . . . . . Prevented . | . . . . . . . . . . . Kills | -11 -10 -9 -8 -7 -7 -7 -7 -6 -6 -6 ------- Run | Yrd Mat Mat Mat Fac Gar Fac Gar Fac Ext Cet Combat Hostiles Destroyed 78 | . 11 5 14 7 17 3 7 10 4 . Melee 2 | . . . . . 2 . . . . . Guns 41 | . 11 5 9 2 2 1 3 5 3 . Cannons 24 | . . . 5 5 8 2 . 3 1 . AOE 11 | . . . . . 5 . 4 2 . . Classes Destroyed 10 | . 2 2 2 1 1 1 . 1 . . Worker 4 | . . . 3 . . . . 1 . . Builder 1 | . . . . . . 1 . . . . Watcher 3 | . . 1 . . . 1 . 1 . . Swarmer 24 | . 6 . 6 3 3 2 4 . . . Grunt 33 | . 5 3 4 . 12 . 3 2 4 . Duelist 1 | . . . 1 . . . . . . . Sentry 9 | . . 2 3 3 . . . 1 . . Hunter 5 | . . . . . 2 . . 3 . . Programmer 6 | . . . . 1 . 1 . 4 . . Heavy 1 | . . . . . . . . 1 . . Guerrilla 1 | . . . . . . . 1 . . . Best Kill Streak 6 | . 4 3 4 3 6 3 5 3 2 . Combat Bots Only 6 | . 4 3 4 3 6 3 5 2 2 . Max Kills in Single Turn 4 | . 1 1 2 1 2 1 4 2 1 . Gunslinging . | . . . . . . . . . . . Exploded 4 | . . . . . 2 . 4 1 . . Melee 1 | . . . . . 1 . . . . . Uniques/NPCs Destroyed . | . . . . . . . . . . . Combat | -11 -10 -9 -8 -7 -7 -7 -7 -6 -6 -6 -------- Run | Yrd Mat Mat Mat Fac Gar Fac Gar Fac Ext Cet Hostile Shots Fired 865 | . 60 22 94 170 126 46 63 136 141 7 Missed 256 | . 14 5 18 59 37 9 19 30 62 3 Damage Taken 8432 | . 483 207 1110 769 1354 425 749 2042 1176 117 Core 1772 | . 134 39 173 133 339 5 98 270 464 117 Absorbed by Shields . | . . . . . . . . . . . Ignored by Resistances 147 | . . . 12 135 . . . . . . Core Remaining (%) 64 | 100 46 90 68 . . . 17 . . . Volleys Fired 332 | . 60 24 59 23 37 15 36 58 20 . Largest 2 | . 2 2 2 2 2 2 2 2 2 . Hottest 117 | . 40 40 100 76 117 117 61 117 97 . Shots Fired 583 | . 110 48 112 46 70 25 47 94 31 . Gun 401 | . 110 48 96 23 22 9 25 55 13 . Cannon 127 | . . . 16 23 44 11 . 24 9 . Launcher 5 | . . . . . 4 . 1 . . . Special 50 | . . . . . . 5 21 15 9 . Kinetic 460 | . 110 48 73 46 62 10 25 73 13 . Thermal 39 | . . . 39 . . . . . . . Explosive 5 | . . . . . 4 . 1 . . . Electromagnetic 29 | . . . . . 4 10 . 6 9 . Robot Hit Streak 16 | . 13 8 16 5 12 5 6 8 11 . Robot Miss Streak 8 | . 6 8 5 3 6 6 8 3 3 . Penetration Max 1 | . . . . . . . 1 1 . . Secondary Targets 4 | . . . 4 . . . . . . . Max Gunslinging Chain 1 | . . . 1 . . . . . . . Shots Hit Robots 451 | . 69 26 86 29 83 18 54 64 22 . Core Hits 221 | . 19 10 43 16 62 12 31 23 5 . Critical Kills 2 | . . . . . 1 . . 1 . . Critical Parts Destroyed . | . . . . . . . . . . . Critical Strikes 13 | . . . 1 3 3 1 3 2 . . Burn 1 | . . . 1 . . . . . . . Destroy 2 | . . . . . 1 . . 1 . . Blast 4 | . . . . 3 . . . 1 . . Sever 6 | . . . . . 2 1 3 . . . Melee Attacks 75 | . . . 2 . 34 8 24 7 . . Impact 2 | . . . 2 . . . . . . . Slashing 73 | . . . . . 34 8 24 7 . . Piercing . | . . . . . . . . . . . Sneak Attacks 2 | . . . . . . 1 1 . . . Combat Hostiles . | . . . . . . . . . . . Follow-up Attacks . | . . . . . . . . . . . Damage Inflicted 9966 | . 744 330 1221 698 3123 359 1702 1456 333 . Guns 3839 | . 744 330 948 262 261 148 341 683 122 . Cannons 2261 | . . . 273 436 811 107 . 423 211 . Explosions 968 | . . . . . 405 . 213 350 . . Melee 2898 | . . . . . 1646 104 1148 . . . Ramming . | . . . . . . . . . . . Kinetic 5193 | . 744 330 786 698 985 148 341 1039 122 . Thermal 785 | . . . 435 . . . . 350 . . Explosive 618 | . . . . . 405 . 213 . . . Electromagnetic 472 | . . . . . 87 107 . 67 211 . Impact . | . . . . . . . . . . . Slashing 2898 | . . . . . 1646 104 1148 . . . Piercing . | . . . . . . . . . . . Highest Corruption 7 | . 6 3 . . . . . 6 7 7 Average Corruption 4 | . 3 2 . . . . . 4 6 7 Corruption Purged . | . . . . . . . . . . . Corruption Blocked . | . . . . . . . . . . . Effects 73 | . 14 11 . . . . . 27 20 1 Message Errors 28 | . 4 4 . . . . . 10 9 1 Matter Fused 13 | . 2 1 . . . . . 4 6 . Heat Flow Errors 2 | . . . . . . . . . 2 . Energy Discharges 6 | . 2 . . . . . . 4 . . Parts Rejected 2 | . . 1 . . . . . . 1 . Data Loss (minor) 10 | . 2 2 . . . . . 5 1 . Data Loss (major) 2 | . 1 . . . . . . 1 . . Misfires 2 | . . 1 . . . . . 1 . . Alerts 5 | . 3 1 . . . . . . 1 . Weapon Failures 3 | . . 1 . . . . . 2 . . Overload Shots . | . . . . . . . . . . . Overflow Damage 353 | . . . . 17 60 64 51 161 . . Projectiles 38 | . . . . 17 . 21 . . . . Explosions 162 | . . . . . . . 1 161 . . Melee 153 | . . . . . 60 43 50 . . . Knockbacks 38 | . . . 8 1 25 . . 4 . . Impact . | . . . . . . . . . . . Kinetic 32 | . . . 6 1 22 . . 3 . . Secondary 6 | . . . 2 . 3 . . 1 . . Self-Inflicted Damage 190 | . . . . . 22 . 18 150 . . Shots 4 | . . . . . 1 . 1 2 . . Rammed . | . . . . . . . . . . . Targets Rammed . | . . . . . . . . . . . Kicked . | . . . . . . . . . . . Crushed . | . . . . . . . . . . . Highest Temperature 260 | . 18 . 260 5 48 30 3 161 253 . Average Temperature 58 | . 6 . 86 5 17 13 3 58 81 . Received Heat Transfer 1809 | . 174 87 324 150 468 45 135 144 264 18 Effects 5 | . . . 5 . . . . . . . Interference 5 | . . . 5 . . . . . . . Siege Activations . | . . . . . . . . . . . Robots Corrupted . | . . . . . . . . . . . Combat Hostiles . | . . . . . . . . . . . Parts Fried . | . . . . . . . . . . . Impact Corruptions . | . . . . . . . . . . . Robots Melted . | . . . . . . . . . . . Combat Hostiles . | . . . . . . . . . . . Parts Melted 4 | . . . 3 . . . . 1 . . Heat Transferred 1384 | . . . 1184 . . . . 200 . . Parts Sabotaged . | . . . . . . . . . . . Parts Stolen . | . . . . . . . . . . . Parts Stripped . | . . . . . . . . . . . Power Chain Reactions 1 | . . . . . . . . 1 . . Alert | -11 -10 -9 -8 -7 -7 -7 -7 -6 -6 -6 ------- Run | Yrd Mat Mat Mat Fac Gar Fac Gar Fac Ext Cet Peak Influence 949 | . 278 264 256 273 949 513 559 283 52 . Initial 497 | . . 64 . 116 51 497 174 272 7 . Average 209 | . 118 145 104 174 460 360 356 74 22 . Maximum Alert Level 3 | . 1 1 1 1 3 2 2 1 . . Low Security (%) 57 | 100 88 68 87 75 18 10 5 82 100 100 Level 1 25 | . 11 31 12 24 21 48 59 17 . . Level 2 14 | . . . . . 42 41 35 . . . Level 3 2 | . . . . . 17 . . . . . Level 4 . | . . . . . . . . . . . Level 5 . | . . . . . . . . . . . High Security . | . . . . . . . . . . . Max Security . | . . . . . . . . . . . Squads Dispatched 22 | . 1 2 1 4 . 3 . 9 2 . Investigation 2 | . . . . . . . . 1 1 . Extermination 5 | . . . . 1 . 1 . 3 . . Reinforcement 11 | . 1 2 1 . . 1 . 5 1 . Assault . | . . . . . . . . . . . Garrison 4 | . . . . 3 . 1 . . . . Intercept . | . . . . . . . . . . . Searches Triggered . | . . . . . . . . . . . Construction Impeded . | . . . . . . . . . . . Haulers Reinforced . | . . . . . . . . . . . Active Scanning Responses . | . . . . . . . . . . . Cargo Convoy Interrupts 1 | . . . . . . . . 1 . . Alert ID Control Effect 23 | . . . . . . . 15 3 5 . Stealth | -11 -10 -9 -8 -7 -7 -7 -7 -6 -6 -6 --------- Run | Yrd Mat Mat Mat Fac Gar Fac Gar Fac Ext Cet Distress Signals 7 | . . 2 2 . . . . 1 1 1 Communications Jammed . | . . . . . . . . . . . Distress Signals . | . . . . . . . . . . . Times Spotted 179 | . 21 17 23 7 24 9 33 20 20 5 Peak Tracking Total 8 | . 4 8 5 3 6 3 6 4 7 5 Tactical Retreats 6 | . 1 . . . 1 1 3 . . . Traps | -11 -10 -9 -8 -7 -7 -7 -7 -6 -6 -6 ------- Run | Yrd Mat Mat Mat Fac Gar Fac Gar Fac Ext Cet Traps Triggered 15 | . 5 2 . . 2 1 1 4 . . Indirectly . | . . . . . . . . . . . Trap Hack Attempts . | . . . . . . . . . . . Triggered . | . . . . . . . . . . . Disarmed . | . . . . . . . . . . . Reprogrammed 1 | . . . . . . . . . 1 . Reused . | . . . . . . . . . . . Traps Extracted . | . . . . . . . . . . . Installed . | . . . . . . . . . . . Triggered 2 | . . . . . . . . 2 . . Machines | -11 -10 -9 -8 -7 -7 -7 -7 -6 -6 -6 ---------- Run | Yrd Mat Mat Mat Fac Gar Fac Gar Fac Ext Cet Machines Disabled 12 | . . . 1 . 3 1 4 3 . . Max in Single Turn 2 | . . . 1 . 1 1 1 2 . . Garrison Relay 6 | . . . . . 3 . 3 . . . Machines Repaired . | . . . . . . . . . . . Machines Dismantled . | . . . . . . . . . . . Machines Sabotaged . | . . . . . . . . . . . Overloaded Fab Kills . | . . . . . . . . . . . Hacking | -11 -10 -9 -8 -7 -7 -7 -7 -6 -6 -6 --------- Run | Yrd Mat Mat Mat Fac Gar Fac Gar Fac Ext Cet Machines Accessed 32 | . 5 2 3 2 2 3 2 4 9 . Terminals 28 | . 5 2 3 1 2 1 2 3 9 . Fabricators . | . . . . . . . . . . . Repair Stations . | . . . . . . . . . . . Recycling Units . | . . . . . . . . . . . Scanalyzers 1 | . . . . . . . . 1 . . Garrison Access 3 | . . . . 1 . 2 . . . . Total Hacks 62 | . 13 3 9 3 2 3 2 7 20 . Successful 34 | . 6 2 7 2 1 2 1 4 9 . Failed 28 | . 7 1 2 1 1 1 1 3 11 . Catastrophic 4 | . . . . . 1 1 1 1 . . Database Lockouts . | . . . . . . . . . . . Manual 21 | . 3 2 3 2 . 2 1 4 4 . Terminals 57 | . 13 3 9 2 2 1 2 5 20 . Fabricators . | . . . . . . . . . . . Repair Stations . | . . . . . . . . . . . Recycling Units . | . . . . . . . . . . . Scanalyzers 2 | . . . . . . . . 2 . . Garrison Access 3 | . . . . 1 . 2 . . . . Terminal Hacks 19 | . 4 . 4 . 1 . 1 1 8 . Record 1 | . 1 . . . . . . . . . Robot Analysis 1 | . . . 1 . . . . . . . Prototype ID Bank 2 | . 1 . 1 . . . . . . . Open Door 8 | . . . . . 1 . 1 1 5 . Locate Traps 2 | . 1 . . . . . . . 1 . Reprogram Traps 1 | . . . . . . . . . 1 . Zone Layout 4 | . 1 . 2 . . . . . 1 . Fabricator Hacks . | . . . . . . . . . . . Repair Station Hacks . | . . . . . . . . . . . Recycling Unit Hacks . | . . . . . . . . . . . Scanalyzer 2 | . . . . . . . . 2 . . Insert Component 1 | . . . . . . . . 1 . . Analyze 1 | . . . . . . . . 1 . . Garrison Access Hacks 3 | . . . . 1 . 2 . . . . Unlock Access 3 | . . . . 1 . 2 . . . . Unauthorized Hacks 10 | . 2 2 3 1 . . . 1 1 . Terminals 10 | . 2 2 3 1 . . . 1 1 . Botnet 10 | . 2 2 3 1 . . . 1 1 . Fabricators . | . . . . . . . . . . . Repair Stations . | . . . . . . . . . . . Recycling Units . | . . . . . . . . . . . Scanalyzers . | . . . . . . . . . . . Garrison Access . | . . . . . . . . . . . Data Cores Recovered . | . . . . . . . . . . . Used . | . . . . . . . . . . . Hacking Detections 22 | . 4 1 1 2 1 2 2 3 6 . Full Trace Events 1 | . . . . . . . . . 1 . Feedback Events . | . . . . . . . . . . . Feedback Blocked . | . . . . . . . . . . . Robot Schematics Acquired . | . . . . . . . . . . . Robots Built . | . . . . . . . . . . . Authchips . | . . . . . . . . . . . Time . | . . . . . . . . . . . Total Robot Build Rating . | . . . . . . . . . . . Part Schematics Acquired 1 | . . . . . . . . 1 . . Parts Built . | . . . . . . . . . . . Authchips . | . . . . . . . . . . . Time . | . . . . . . . . . . . Total Part Build Rating . | . . . . . . . . . . . Parts Repaired . | . . . . . . . . . . . Time . | . . . . . . . . . . . Parts Recycled . | . . . . . . . . . . . Recycled Matter . | . . . . . . . . . . . Retrieved Matter . | . . . . . . . . . . . Retrieved Components . | . . . . . . . . . . . Parts Scanalyzed 1 | . . . . . . . . 1 . . Part Schematics Acquired 1 | . . . . . . . . 1 . . Parts Damaged . | . . . . . . . . . . . Bothacking | -11 -10 -9 -8 -7 -7 -7 -7 -6 -6 -6 ------------ Run | Yrd Mat Mat Mat Fac Gar Fac Gar Fac Ext Cet Used RIF Installer 2 | . . . . . 1 . 1 . . . Alert ID Control 1 | . . . . . . . 1 . . . Robots Hacked 19 | . . . . . . 2 8 6 3 . Non-combat . | . . . . . . . . . . . Combat 19 | . . . . . . 2 8 6 3 . Robot Hacks Applied 19 | . . . . . . 2 8 6 3 . overload_power 1 | . . . . . . . 1 . . . disable_weapons 1 | . . . . . . . 1 . . . overwrite_iff 1 | . . . . . . . 1 . . . formatsys_high 16 | . . . . . . 2 5 6 3 . Relay Couplers Released 23 | . . . . . 11 . 12 . . . Machine Destruction 23 | . . . . . 11 . 12 . . . Attached 13 | . . . . . 1 2 4 4 2 . Fabnet Peak Effective % . | . . . . . . . . . . . Robots Rewired 2 | . . . . . . . 2 . . . Allies Hacked 1 | . . . . . . . . . 1 . Hacks Repelled . | . . . . . . . . . . . Allies | -11 -10 -9 -8 -7 -7 -7 -7 -6 -6 -6 -------- Run | Yrd Mat Mat Mat Fac Gar Fac Gar Fac Ext Cet Total Allies 29 | . . . . . 4 2 8 6 9 . Largest Group 5 | . . . . . 3 2 4 2 5 . Highest-Rated Group 160 | . . . . . 160 80 145 70 143 . Highest-Rated Ally 85 | . . . . . 80 80 85 41 39 . Total Orders 1 | . . . . . . . . 1 . . ROAM 1 | . . . . . . . . 1 . . Ally Attacks 167 | . . . . . 37 5 71 23 31 . Total Damage 5264 | . . . . . 1314 267 2083 665 935 . Kills 44 | . . . . . 15 . 20 3 6 . Allies Corrupted 1 | . . . . . . . . . 1 . Allies Melted 1 | . . . . . . . . 1 . . Intel | -11 -10 -9 -8 -7 -7 -7 -7 -6 -6 -6 ------- Run | Yrd Mat Mat Mat Fac Gar Fac Gar Fac Ext Cet Robot Analysis Total 1 | . . . 1 . . . . . . . Derelict Logs Recovered . | . . . . . . . . . . . Drone Launches 5 | . . . . . . . . 5 . . Drone Recoveries 4 | . . . . . . . . 4 . . Exploration | -11 -10 -9 -8 -7 -7 -7 -7 -6 -6 -6 ------------- Run | Yrd Mat Mat Mat Fac Gar Fac Gar Fac Ext Cet Turns Passed 9306 | 61 776 824 777 406 1494 971 1003 2297 676 21 Spaces Moved 4610 | 58 560 386 315 243 700 447 469 1062 349 21 Core 122 | 16 . . . . 2 . 1 . 103 . Treads 1476 | . . 307 116 . 268 447 338 . . . Legs 280 | . . . . . 280 . . . . . Wheels 2732 | 42 560 79 199 243 150 . 130 1062 246 21 Hover . | . . . . . . . . . . . Flight . | . . . . . . . . . . . Fastest Speed 50 | 50 90 110 120 115 105 160 120 180 50 100 Average Speed 163 | 79 94 189 166 124 165 197 167 185 173 100 Slowest Speed 950 | 100 110 320 240 165 750 240 950 195 300 100 Overloaded Moves . | . . . . . . . . . . . Propulsion Burnouts . | . . . . . . . . . . . Robots Hopped . | . . . . . . . . . . . Cave-ins Triggered . | . . . . . . . . . . . Exploration Rate (%) 35 | 4 91 26 29 7 79 12 53 26 52 16 Regions Visited 10 Branch Regions 2 Pre-discovered Areas . | . . . . . . . . . . . Known Exits Taken 2 | . . . . 1 . 1 . . . . Unknown Exits Taken 6 | 1 1 1 1 . . . . 1 1 . Scrap Searched . | . . . . . . . . . . . Spaces Dug 14 | . . . 2 . . 5 . 7 . . Terrain Destroyed 57 | . . . 2 . 18 5 2 29 1 . Melee 14 | . . . 2 . . 5 . 7 . . Projectile 4 | . . . . . 1 . . 2 1 . AOE 39 | . . . . . 17 . 2 20 . . Terrain Rammed . | . . . . . . . . . . . Walls Destroyed . | . . . . . . . . . . . Machines Disabled . | . . . . . . . . . . . Actions | -11 -10 -9 -8 -7 -7 -7 -7 -6 -6 -6 --------- Run | Yrd Mat Mat Mat Fac Gar Fac Gar Fac Ext Cet Total 5651 | 69 702 431 448 298 903 498 608 1284 389 21 Wait 359 | . 73 12 36 12 60 7 36 112 11 . Move 4601 | 57 559 385 314 243 699 446 468 1061 348 21 Hop . | . . . . . . . . . . . Pick Up 68 | 6 3 2 9 7 20 3 8 9 1 . Fast Attach 39 | 6 3 3 6 3 7 2 4 4 1 . Attach 46 | . 2 2 5 3 9 4 7 12 2 . Detach 8 | . . . 1 . 3 2 2 . . . Swap 77 | . 1 2 11 4 14 7 17 16 5 . Drop 34 | . 1 1 5 3 10 2 6 5 1 . Fire 332 | . 60 24 59 23 37 15 36 58 20 . Melee 75 | . . . 2 . 34 8 24 7 . . Ram . | . . . . . . . . . . . Kick . | . . . . . . . . . . . Crush . | . . . . . . . . . . . Escape Stasis 10 | . . . . . 10 . . . . . Rewire 2 | . . . . . . 2 . . . . Trap . | . . . . . . . . . . . Miscellaneous . | . . . . . . . . . . . Route ------- -11/Scrapyard -10/Materials (discovered 4 exits: *Mat x3 / [*Min]) -9/Materials -8/Materials -7/Factory -7/Garrison (discovered 3 exits: *Fac x3) -7/Factory (discovered 3 exits: *Fac / Gar / Gar) -7/Garrison (discovered 2 exits: *Fac x2) -6/Factory (discovered 2 exits: [*Fac] / *Ext) -6/Extension (discovered 2 exits: [*Fac] / [*Cet]) -6/Cetus History --------- Turn | Location | Event 6 | -11/Scrapyard | Discovered new exit (range 15) 62 | -11/Scrapyard | Entered Materials 231 | -10/Materials | Discovered new exit (range 16) 304 | -10/Materials | Build established: Mutant 332 | -10/Materials | Discovered new exit (range 14) 632 | -10/Materials | Discovered new exit (range 16) 712 | -10/Materials | Core integrity fell below 50% 773 | -10/Materials | Discovered new exit (range 10) 838 | -10/Materials | Entered another Materials area 838 | -9/Materials | Evolved 2 slots: Utility x2 1217 | -9/Materials | Discovered new exit (range 5) 1662 | -9/Materials | Entered another Materials area 1662 | -8/Materials | Evolved 2 slots: Utility x2 1980 | -8/Materials | Lost 3 parts (1p1u1w) 2391 | -8/Materials | Discovered new exit (range 15) 2439 | -8/Materials | Entered Factory 2439 | -7/Factory | Evolved 2 slots: Utility x2 2842 | -7/Factory | Lost 5 parts (1p1n3u) 2845 | -7/Factory | Identified exit to Garrison 2845 | -7/Factory | Entered Garrison 2857 | -7/Garrison | Triggered checkpoint 2954 | -7/Garrison | Garrison Relay disabled 3042 | -7/Garrison | Triggered checkpoint 3103 | -7/Garrison | Lost 3 parts (1p1n1u) 3119 | -7/Garrison | Triggered checkpoint 3202 | -7/Garrison | Core integrity fell below 50% 3241 | -7/Garrison | Lost 7 parts (1p3n1u2w) 3337 | -7/Garrison | Discovered new exit (range 10) 3382 | -7/Garrison | Found embedded Infiltrators 3419 | -7/Garrison | Triggered checkpoint 3444 | -7/Garrison | Garrison Relay disabled 3499 | -7/Garrison | Build established: Scavenger-Mutant 3557 | -7/Garrison | Triggered checkpoint 3646 | -7/Garrison | Discovered new exit (range 9) 3725 | -7/Garrison | Triggered checkpoint 3900 | -7/Garrison | Rescued a captive Derelict 3900 | -7/Garrison | Rescued a captive Derelict 4005 | -7/Garrison | Triggered checkpoint 4144 | -7/Garrison | Discovered new exit (range 12) 4158 | -7/Garrison | Installed Relay Interface Framework 4225 | -7/Garrison | Triggered checkpoint 4274 | -7/Garrison | Garrison Relay disabled 4339 | -7/Garrison | Entered Factory 4339 | -7/Factory | Accompanied by 1 ally 4771 | -7/Factory | Identified exit to Garrison 5023 | -7/Factory | Discovered new exit (range 11) 5226 | -7/Factory | Garrison activated, responded to threat 5286 | -7/Factory | Identified exit to Garrison 5310 | -7/Factory | Entered Garrison 5310 | -7/Garrison | Accompanied by 2 allies 5458 | -7/Garrison | Triggered checkpoint 5503 | -7/Garrison | Expanded RIF knowledge: Alert ID Control 5543 | -7/Garrison | Garrison Relay disabled 5570 | -7/Garrison | Triggered checkpoint 5572 | -7/Garrison | Build established: Bothacker-Mutant 5622 | -7/Garrison | Triggered checkpoint 5622 | -7/Garrison | Triggered checkpoint 5662 | -7/Garrison | Lost 4 parts (1p2u1w) 5701 | -7/Garrison | Discovered new exit (range 8) 5822 | -7/Garrison | Triggered checkpoint 5866 | -7/Garrison | Garrison Relay disabled 5956 | -7/Garrison | Triggered checkpoint 5988 | -7/Garrison | Triggered checkpoint 5991 | -7/Garrison | Core integrity fell below 20% 6016 | -7/Garrison | Triggered checkpoint 6232 | -7/Garrison | Garrison Relay disabled 6262 | -7/Garrison | Spotted B-75 Beast 6295 | -7/Garrison | Discovered new exit (range 10) 6313 | -7/Garrison | Entered Factory 6313 | -6/Factory | Evolved 2 slots: Utility x2 7455 | -6/Factory | Discovered new exit (range 11) 7670 | -6/Factory | Cargo convoy interrupted 8435 | -6/Factory | Discovered new exit (range 6) 8610 | -6/Factory | Entered Extension 8677 | -6/Extension | Rescued a captive Derelict 8704 | -6/Extension | Rescued a captive Derelict 8786 | -6/Extension | Rescued a captive Derelict 9000 | -6/Extension | Lost 3 allies 9006 | -6/Extension | Rescued a captive Derelict 9139 | -6/Extension | Rescued a captive Derelict 9140 | -6/Extension | Rescued a captive Derelict 9210 | -6/Extension | Spotted B-75 Beast 9225 | -6/Extension | Spotted B-75 Beast 9237 | -6/Extension | Core integrity fell below 50% 9243 | -6/Extension | Core integrity fell below 20% 9276 | -6/Extension | Lost 8 parts (1p1n4u2w) 9276 | -6/Extension | Discovered new exit (range 16) 9277 | -6/Extension | Discovered new exit (range 15) 9286 | -6/Extension | Entered Cetus 9300 | -6/Cetus | Spotted Cetus Guard 9300 | -6/Cetus | Spotted Cetus Guard 9302 | -6/Cetus | Spotted Cetus Guard 9302 | -6/Cetus | Spotted Cetus Guard 9307 | -6/Cetus | Destroyed by Cetus Guard with Advanced Variable Charge Gun Last Messages --------------- 09233_ Angular Momentum Engine destroyed. 09233_ Dropped Cargo Storage Unit. 09234_ U-05 Engineer destroyed. 09239_ Relay Coupler [Specialist] destroyed. 09243_ Relay Coupler [Sentry] destroyed. 09245_ Relay Coupler [Swarmer] destroyed. 09251_ System corrupted: IFF burst signal emitted. 09272_ 4AGO0/Q VI4:XA,7S,OQV=7IIGVF 09276_ EXIT=FOUND 09280_ K-01 Serf enters Transfer Station. 09281_ R-10 Processor enters Transfer Station. 09284_ K-01 Serf exits Transfer Station. 09284_ R-10 Processor exits Transfer Station. 09285_ Acquired Com. Wheel. LOCATION=UNKNOWN GOAL=ESCAPE 09292_ I>&H>7H#W5<|1>W 3EL5 09301_ Slug penetrates Wall. 09303_ Penetrated by Slug. Map ----- +----------------------------------------------------+ | ???????????????????????????????????????????????? | | ???????????????????????????????????????????????? | | ???????????????????????????????????????????????? | | ???????????????????????????????????????????????? | | ???????????????????????????????????????????????? | | ???????????????????????????????????????????????? | | ???????????????????????????????????????????????? | | ???????????????????????????????????????????????? | | ???????????????????????????????????????????????? | | ???????????????????????????????????????????????? | | ??????????????????????? ?????????????????????? | | ??????????????????????? #????????????????????? | | ??????????????????????? #????????????????????? | | ??????????????????????? #????????????????????? | | ??????????????????????? #????????????????????? | | ??????????????????????? #????????????????????? | | ??????????????????????? #????????????????????? | | ??????????????????????# #????????????????????? | | ??????????????????????# #????????????????????? | | ??????????????????????# #????????????????????? | | ??????????????????????# #????????????????????? | | ??????????????????????# #????????????????????? | | ??????????????????????# #????????????????????? | | ??????????????????????# #????????????????????? | | ??????????????????????# #????????????????????? | | ??????????????????#####@ #????????????????????? | | ?##################""## ###### #???????????? | | ?# +?????????? | | ?# Y +?????????? | | ?# Y +?????????? | | ?##############"################ ###?????????? | | ??????????????#???????????????????##???????????? | | ???????????????????????????????????????????????? | | ???????????????????????????????????????????????? | | ???????????????????????????????????????????????? | | ???????????????????????????????????????????????? | | ???????????????????????????????????????????????? | | ???????????????????????????????????????????????? | | ???????????????????????????????????????????????? | | ???????????????????????????????????????????????? | | ???????????????????????????????????????????????? | | ???????????????????????????????????????????????? | | ???????????????????????????????????????????????? | | ???????????????????????????????????????????????? | | ???????????????????????????????????????????????? | | ???????????????????????????????????????????????? | | ???????????????????????????????????????????????? | | ???????????????????????????????????????????????? | | ???????????????????????????????????????????????? | | ???????????????????????????????????????????????? | +----------------------------------------------------+ Best States ------------- Heat Dissipation 58 Energy Generation 18 Energy Capacity 300 Matter Stores 300 Matter Capacity 300 Sight Range 16 Terrain Scan Density 10 Armor Coverage 825 Resistance: KI 20 Evasion (%) 50 Targeting Accuracy 5 Target Analysis 5 Recoil Reduction 2 Offensive Hacking 10 Relay Coupler Types 5 Relay Coupler Value 94 Item Schematics ----------------- Remote Datajack | -6/Factory | Scanalyzed Robot Schematics ------------------ None Fabricated ------------ Nothing Alien Tech Used ----------------- None Achievements -------------- None Challenges ------------ None Game ------ Seed CargoWardroneThermoblaster Manual? 0 Play Time 01:35:00 Cumulative 139.3 hours Start 2024.03.14 @ 20:39:43 End 2024.06.01 @ 19:47:25 Sessions 9 Manual Loads 0 Difficulty Rogue Special Mode None Game No. 216 Rogue 216 Adventurer 0 Explorer 0 Win Type - Total 1 Types 1/0/0/0/0/0/0/0/0 Lore% 30 Gallery% 50 Achievement% 44 Wizard Run 0 Options --------- Layout 2 ASCII 0 Keyboard 0 Movement Mouse Keybinds 0 Fullscreen 1 Font 24/Smallcaps Map View 50x44 Zoom Use 0% Tactical HUD 1 Map Filters NONE Filters NONE Steam 1 RUN: 5dd1d264-0528-4b40-bf65-349784b442c9